[Event "Early-Titled-Tuesday-Blitz-April-16-2024"]
[Site "Chess.com"]
[Date "2024.04.16"]
[Round "7"]
[White "MarcoRiehle"]
[Black "CristianS27"]
[Result "1-0"]
[WhiteElo "2739"]
[BlackElo "2538"]
[TimeControl "180+1"]
[EndTime "9:20:25 PDT"]
[Termination "MarcoRiehle won by checkmate"]

1. e4 {[%clk 0:03:00.9]} 1... e5 {[%clk 0:02:55.8]} 2. Nf3 {[%clk 0:03:01]} 2...
Nc6 {[%clk 0:02:56.3]} 3. Bc4 {[%clk 0:03:00.3]} 3... Nf6 {[%clk 0:02:55.9]} 4.
d4 {[%clk 0:03:00.5]} 4... exd4 {[%clk 0:02:55.9]} 5. O-O {[%clk 0:03:01.1]}
5... Nxe4 {[%clk 0:02:55.9]} 6. Nc3 {[%clk 0:03:00.7]} 6... Nxc3 {[%clk
0:02:21.9]} 7. bxc3 {[%clk 0:02:59.4]} 7... d5 {[%clk 0:02:21.4]} 8. Bd3 {[%clk
0:02:59.6]} 8... Be7 {[%clk 0:02:17.7]} 9. Re1 {[%clk 0:02:58.1]} 9... O-O
{[%clk 0:02:17.7]} 10. cxd4 {[%clk 0:02:58.7]} 10... Bg4 {[%clk 0:02:16.8]} 11.
c3 {[%clk 0:02:58.8]} 11... Qd7 {[%clk 0:02:01.1]} 12. Bf4 {[%clk 0:02:56.9]}
12... Bd6 {[%clk 0:01:58.2]} 13. Bxd6 {[%clk 0:02:57.3]} 13... cxd6 {[%clk
0:01:42.6]} 14. h3 {[%clk 0:02:56.9]} 14... Bh5 {[%clk 0:01:41.4]} 15. Re3
{[%clk 0:02:53.5]} 15... Rfe8 {[%clk 0:01:38.8]} 16. Bxh7+ {[%clk 0:02:44]}
16... Kxh7 {[%clk 0:01:19.2]} 17. Ng5+ {[%clk 0:02:44.1]} 17... Kh6 {[%clk
0:01:16]} 18. Qd2 {[%clk 0:02:43.9]} 18... Rxe3 {[%clk 0:01:11.5]} 19. Qxe3
{[%clk 0:02:44.8]} 19... Re8 {[%clk 0:01:05.4]} 20. Qf4 {[%clk 0:02:43.4]} 20...
f6 {[%clk 0:00:58.5]} 21. Nf7+ {[%clk 0:02:34.1]} 21... Kh7 {[%clk 0:00:58]} 22.
Nxd6 {[%clk 0:02:33.7]} 22... Re6 {[%clk 0:00:51]} 23. Nb5 {[%clk 0:02:22.8]}
23... Bg6 {[%clk 0:00:43.8]} 24. Qh4+ {[%clk 0:02:13.1]} 24... Kg8 {[%clk
0:00:43.2]} 25. Qg3 {[%clk 0:02:14]} 25... Qe7 {[%clk 0:00:42.1]} 26. Qxg6
{[%clk 0:02:12.7]} 26... Re1+ {[%clk 0:00:37.1]} 27. Rxe1 {[%clk 0:02:13.3]}
27... Qxe1+ {[%clk 0:00:37.9]} 28. Kh2 {[%clk 0:02:13.6]} 28... Qxf2 {[%clk
0:00:38.8]} 29. Qe8+ {[%clk 0:02:10.9]} 29... Kh7 {[%clk 0:00:39.1]} 30. Qh5+
{[%clk 0:02:11.6]} 30... Kg8 {[%clk 0:00:39.5]} 31. Qxd5+ {[%clk 0:02:12.2]}
31... Kh7 {[%clk 0:00:35.6]} 32. Qe4+ {[%clk 0:02:11.7]} 32... Kg8 {[%clk
0:00:35.3]} 33. a4 {[%clk 0:02:09.4]} 33... f5 {[%clk 0:00:29.3]} 34. Qf3 {[%clk
0:02:01.9]} 34... Qc2 {[%clk 0:00:18.1]} 35. Nd6 {[%clk 0:02:01.3]} 35... Ne7
{[%clk 0:00:11.5]} 36. Qxb7 {[%clk 0:01:56.1]} 36... Ng6 {[%clk 0:00:07]} 37.
Qc8+ {[%clk 0:01:55.7]} 37... Kh7 {[%clk 0:00:06.4]} 38. Qxf5 {[%clk 0:01:56.3]}
38... Qxc3 {[%clk 0:00:03.1]} 39. Qh5+ {[%clk 0:01:55.2]} 39... Kg8 {[%clk
0:00:02.8]} 40. Qxg6 {[%clk 0:01:55.3]} 40... Qxd4 {[%clk 0:00:03.1]} 41. Nf5
{[%clk 0:01:48.1]} 41... Qf4+ {[%clk 0:00:02.6]} 42. Kg1 {[%clk 0:01:45]} 42...
Qc1+ {[%clk 0:00:02.2]} 43. Kh2 {[%clk 0:01:44.1]} 43... Qf4+ {[%clk 0:00:03.1]}
44. Ng3 {[%clk 0:01:44.5]} 44... Kh8 {[%clk 0:00:02.9]} 45. a5 {[%clk
0:01:43.1]} 45... Kg8 {[%clk 0:00:02.2]} 46. a6 {[%clk 0:01:43.2]} 46... Kh8
{[%clk 0:00:02.6]} 47. Qc6 {[%clk 0:01:41.9]} 47... Kg8 {[%clk 0:00:02.4]} 48.
Qa8+ {[%clk 0:01:41.8]} 48... Kh7 {[%clk 0:00:03]} 49. Qxa7 {[%clk 0:01:42.1]}
49... Kh6 {[%clk 0:00:03.4]} 50. Qc5 {[%clk 0:01:40.7]} 50... g5 {[%clk
0:00:03.4]} 51. a7 {[%clk 0:01:40.4]} 51... Qf8 {[%clk 0:00:02]} 52. Qxf8+
{[%clk 0:01:39.8]} 52... Kg6 {[%clk 0:00:01.8]} 53. a8=Q {[%clk 0:01:39.1]}
53... Kh7 {[%clk 0:00:02.7]} 54. Qe4# {[%clk 0:01:38.7]} 1-0

[Event "Early-Titled-Tuesday-Blitz-April-16-2024"]
[Site "Chess.com"]
[Date "2024.04.16"]
[Round "7"]
[White "KVAIDAN"]
[Black "FREDERICKtheMATE"]
[Result "0-1"]
[WhiteElo "2356"]
[BlackElo "2697"]
[TimeControl "180+1"]
[EndTime "9:20:25 PDT"]
[Termination "FREDERICKtheMATE won by resignation"]

1. f4 {[%clk 0:03:00.9]} 1... f5 {[%clk 0:02:56.3]} 2. e4 {[%clk 0:03:00.5]}
2... fxe4 {[%clk 0:02:56.3]} 3. d3 {[%clk 0:03:00.3]} 3... exd3 {[%clk
0:02:56.2]} 4. Bxd3 {[%clk 0:03:00.3]} 4... Nf6 {[%clk 0:02:56.7]} 5. Nf3 {[%clk
0:02:59.3]} 5... e6 {[%clk 0:02:55.6]} 6. Ng5 {[%clk 0:02:59.3]} 6... Qe7 {[%clk
0:02:34.2]} 7. Nc3 {[%clk 0:02:39.2]} 7... g6 {[%clk 0:02:32.4]} 8. h4 {[%clk
0:02:32.8]} 8... Qg7 {[%clk 0:02:22.6]} 9. h5 {[%clk 0:02:31]} 9... Nxh5 {[%clk
0:02:16.9]} 10. Rxh5 {[%clk 0:02:29.6]} 10... gxh5 {[%clk 0:02:17.2]} 11. Qxh5+
{[%clk 0:02:29.4]} 11... Ke7 {[%clk 0:02:17]} 12. f5 {[%clk 0:02:18.1]} 12... h6
{[%clk 0:02:13.5]} 13. Nf3 {[%clk 0:02:12.4]} 13... Qf7 {[%clk 0:01:55.5]} 14.
Qh4+ {[%clk 0:01:57.8]} 14... Qf6 {[%clk 0:01:55]} 15. Qc4 {[%clk 0:01:55]}
15... c6 {[%clk 0:01:45.5]} 16. Ne4 {[%clk 0:01:48.9]} 16... d5 {[%clk 0:01:34]}
17. Qc5+ {[%clk 0:01:28.1]} 17... Kf7 {[%clk 0:01:23.7]} 18. fxe6+ {[%clk
0:01:15.1]} 18... Qxe6 {[%clk 0:01:02.8]} 19. Qc3 {[%clk 0:00:44.1]} 19... Bg7
{[%clk 0:01:01.1]} 20. Qb3 {[%clk 0:00:44]} 20... b5 {[%clk 0:00:48.8]} 21. Nd4
{[%clk 0:00:39.3]} 21... Bxd4 {[%clk 0:00:46.9]} 22. Be2 {[%clk 0:00:30.8]}
22... dxe4 {[%clk 0:00:45.4]} 23. c3 {[%clk 0:00:31.3]} 23... Qxb3 {[%clk
0:00:44.1]} 24. axb3 {[%clk 0:00:32]} 24... Bb6 {[%clk 0:00:43.4]} 25. Bf4
{[%clk 0:00:30.8]} 25... Be6 {[%clk 0:00:42.2]} 26. O-O-O {[%clk 0:00:30.9]}
26... Nd7 {[%clk 0:00:41.7]} 27. Rd6 {[%clk 0:00:30.4]} 27... Bc7 {[%clk
0:00:33.6]} 28. Bh5+ {[%clk 0:00:30.4]} 28... Ke7 {[%clk 0:00:33.3]} 29. Rxe6+
{[%clk 0:00:25]} 29... Kxe6 {[%clk 0:00:33.1]} 30. Bxc7 {[%clk 0:00:25.7]} 30...
Ne5 {[%clk 0:00:33]} 31. Ba5 {[%clk 0:00:23.7]} 31... Rhg8 {[%clk 0:00:30.6]}
0-1

[Event "Early-Titled-Tuesday-Blitz-April-16-2024"]
[Site "Chess.com"]
[Date "2024.04.16"]
[Round "7"]
[White "vovachesss"]
[Black "2Coaches1Profile"]
[Result "1-0"]
[WhiteElo "2763"]
[BlackElo "2551"]
[TimeControl "180+1"]
[EndTime "9:20:28 PDT"]
[Termination "vovachesss won by checkmate"]

1. e4 {[%clk 0:03:00.9]} 1... Nf6 {[%clk 0:02:56.9]} 2. e5 {[%clk 0:03:00.9]}
2... Nd5 {[%clk 0:02:56.4]} 3. Nc3 {[%clk 0:03:01.6]} 3... c6 {[%clk 0:02:56.1]}
4. d4 {[%clk 0:02:58]} 4... d6 {[%clk 0:02:56.3]} 5. f4 {[%clk 0:02:57.8]} 5...
g6 {[%clk 0:02:55.2]} 6. Nf3 {[%clk 0:02:58]} 6... Bg7 {[%clk 0:02:55.6]} 7. Bc4
{[%clk 0:02:54.3]} 7... Nxc3 {[%clk 0:02:40.7]} 8. bxc3 {[%clk 0:02:55.2]} 8...
O-O {[%clk 0:02:40.9]} 9. O-O {[%clk 0:02:53.6]} 9... d5 {[%clk 0:02:12.5]} 10.
Bd3 {[%clk 0:02:44]} 10... c5 {[%clk 0:02:12.3]} 11. dxc5 {[%clk 0:02:31.9]}
11... Qa5 {[%clk 0:01:58.9]} 12. Be3 {[%clk 0:02:31.8]} 12... Qxc3 {[%clk
0:01:50.5]} 13. a4 {[%clk 0:02:18.5]} 13... Nc6 {[%clk 0:01:43.1]} 14. a5 {[%clk
0:02:17.6]} 14... d4 {[%clk 0:01:35.5]} 15. Bf2 {[%clk 0:02:06]} 15... Qxc5
{[%clk 0:01:32.6]} 16. Be4 {[%clk 0:01:54.5]} 16... Rd8 {[%clk 0:01:15.2]} 17.
Ra4 {[%clk 0:01:52.7]} 17... Bf5 {[%clk 0:01:03.5]} 18. Bxf5 {[%clk 0:01:48]}
18... gxf5 {[%clk 0:01:04.4]} 19. e6 {[%clk 0:01:14.6]} 19... fxe6 {[%clk
0:00:53.2]} 20. Ng5 {[%clk 0:01:14.5]} 20... Rd6 {[%clk 0:00:42.8]} 21. Qh5
{[%clk 0:01:14.1]} 21... Qxc2 {[%clk 0:00:19.4]} 22. Qxh7+ {[%clk 0:00:48.9]}
22... Kf8 {[%clk 0:00:19.6]} 23. Qg6 {[%clk 0:00:48.4]} 23... Nd8 {[%clk
0:00:18.8]} 24. Rxd4 {[%clk 0:00:42.7]} 24... Rxd4 {[%clk 0:00:16.6]} 25. Nh7+
{[%clk 0:00:43.2]} 25... Kg8 {[%clk 0:00:16]} 26. Bxd4 {[%clk 0:00:44.1]} 26...
e5 {[%clk 0:00:08.6]} 27. Bxe5 {[%clk 0:00:42.7]} 27... Qc5+ {[%clk 0:00:06.5]}
28. Kh1 {[%clk 0:00:43.2]} 28... Ne6 {[%clk 0:00:06.5]} 29. Ng5 {[%clk
0:00:32.6]} 29... Kh8 {[%clk 0:00:05.1]} 30. Qh7# {[%clk 0:00:32.8]} 1-0

[Event "Early-Titled-Tuesday-Blitz-April-16-2024"]
[Site "Chess.com"]
[Date "2024.04.16"]
[Round "7"]
[White "Cheer_Down"]
[Black "rhwr"]
[Result "1-0"]
[WhiteElo "2498"]
[BlackElo "2279"]
[TimeControl "180+1"]
[EndTime "9:20:32 PDT"]
[Termination "Cheer_Down won by resignation"]

1. e4 {[%clk 0:03:00.9]} 1... c5 {[%clk 0:02:59.7]} 2. Nf3 {[%clk 0:03:00.6]}
2... d6 {[%clk 0:03:00.1]} 3. d4 {[%clk 0:03:00.9]} 3... cxd4 {[%clk 0:03:00.7]}
4. Nxd4 {[%clk 0:03:01.7]} 4... Nf6 {[%clk 0:03:00.9]} 5. Nc3 {[%clk 0:03:01.9]}
5... e5 {[%clk 0:03:01.5]} 6. Bb5+ {[%clk 0:02:59.8]} 6... Bd7 {[%clk
0:03:01.5]} 7. Bxd7+ {[%clk 0:02:58.6]} 7... Qxd7 {[%clk 0:03:01.2]} 8. Nf5
{[%clk 0:02:58.7]} 8... d5 {[%clk 0:03:01.7]} 9. Nxd5 {[%clk 0:02:54.3]} 9...
Nxe4 {[%clk 0:02:49.5]} 10. Nfe3 {[%clk 0:02:54.5]} 10... Bc5 {[%clk 0:02:47.1]}
11. O-O {[%clk 0:02:53.2]} 11... Nc6 {[%clk 0:02:44.1]} 12. Qf3 {[%clk
0:02:38.7]} 12... Nd6 {[%clk 0:02:42.3]} 13. Rd1 {[%clk 0:02:26.1]} 13... Nd4
{[%clk 0:02:22.8]} 14. Qh5 {[%clk 0:02:17.3]} 14... Nc6 {[%clk 0:01:48.3]} 15.
b4 {[%clk 0:02:11.4]} 15... Bxe3 {[%clk 0:01:31.6]} 16. Bxe3 {[%clk 0:02:10.1]}
16... O-O {[%clk 0:01:22.4]} 17. b5 {[%clk 0:01:56.7]} 17... Nd4 {[%clk
0:01:03.3]} 18. Qxe5 {[%clk 0:01:54.8]} 18... Nxc2 {[%clk 0:00:59.6]} 19. Rac1
{[%clk 0:01:46.1]} 19... Nxe3 {[%clk 0:00:58.8]} 20. Nxe3 {[%clk 0:01:46.2]}
20... Rad8 {[%clk 0:00:57.3]} 21. a4 {[%clk 0:01:39.2]} 21... Qe6 {[%clk
0:00:53.7]} 22. Qxe6 {[%clk 0:01:37.5]} 22... fxe6 {[%clk 0:00:53.5]} 23. f3
{[%clk 0:01:35.1]} 23... Rf7 {[%clk 0:00:51.4]} 24. Nc4 {[%clk 0:01:29.4]} 24...
Rfd7 {[%clk 0:00:46.9]} 25. Ne5 {[%clk 0:01:29.6]} 25... Re7 {[%clk 0:00:45.8]}
26. Rd3 {[%clk 0:01:25.3]} 26... Nf7 {[%clk 0:00:42.2]} 27. Rxd8+ {[%clk
0:01:13.9]} 27... Nxd8 {[%clk 0:00:41.8]} 28. Rc8 {[%clk 0:01:13.7]} 28... Re8
{[%clk 0:00:42.4]} 29. a5 {[%clk 0:01:05.6]} 29... Kf8 {[%clk 0:00:41.3]} 30. a6
{[%clk 0:01:05.2]} 30... bxa6 {[%clk 0:00:40.9]} 31. bxa6 {[%clk 0:01:05.3]}
31... Nf7 {[%clk 0:00:33.7]} 32. Rxe8+ {[%clk 0:00:59.6]} 32... Kxe8 {[%clk
0:00:34.2]} 33. Nc6 {[%clk 0:01:00.2]} 33... Kd7 {[%clk 0:00:34.5]} 34. Nxa7
{[%clk 0:01:00.4]} 34... Kc7 {[%clk 0:00:34.6]} 35. Nb5+ {[%clk 0:01:00.2]}
35... Kb6 {[%clk 0:00:34.7]} 36. a7 {[%clk 0:00:58.9]} 36... Kb7 {[%clk
0:00:35.4]} 37. Kf2 {[%clk 0:00:56.6]} 37... Nd8 {[%clk 0:00:34.3]} 38. Ke3
{[%clk 0:00:54.1]} 38... Nc6 {[%clk 0:00:34.1]} 39. Ke4 {[%clk 0:00:53.8]} 39...
Nxa7 {[%clk 0:00:31.9]} 40. Nxa7 {[%clk 0:00:53.8]} 40... Kxa7 {[%clk
0:00:32.2]} 41. Ke5 {[%clk 0:00:54.4]} 41... Kb7 {[%clk 0:00:33.1]} 42. Kxe6
{[%clk 0:00:54.7]} 42... Kc7 {[%clk 0:00:33.8]} 43. Kf7 {[%clk 0:00:55.1]} 43...
g5 {[%clk 0:00:33.6]} 44. g4 {[%clk 0:00:53.7]} 44... Kd6 {[%clk 0:00:34.5]} 45.
Kf6 {[%clk 0:00:54.1]} 45... h6 {[%clk 0:00:34.2]} 46. Kg6 {[%clk 0:00:54.3]}
46... Ke5 {[%clk 0:00:35.1]} 47. Kxh6 {[%clk 0:00:54]} 47... Kf4 {[%clk
0:00:35.5]} 48. Kh5 {[%clk 0:00:54.3]} 48... Kxf3 {[%clk 0:00:35.5]} 49. Kxg5
{[%clk 0:00:54.9]} 49... Kg2 {[%clk 0:00:36.1]} 50. h4 {[%clk 0:00:55.6]} 50...
Kh2 {[%clk 0:00:36.9]} 51. h5 {[%clk 0:00:56.5]} 1-0

[Event "Early-Titled-Tuesday-Blitz-April-16-2024"]
[Site "Chess.com"]
[Date "2024.04.16"]
[Round "7"]
[White "GMAneta"]
[Black "NewYearGirl"]
[Result "0-1"]
[WhiteElo "2539"]
[BlackElo "2381"]
[TimeControl "180+1"]
[EndTime "9:20:33 PDT"]
[Termination "NewYearGirl won by checkmate"]

1. d4 {[%clk 0:03:00.1]} 1... Nf6 {[%clk 0:02:59.7]} 2. Nf3 {[%clk 0:03:00]}
2... c5 {[%clk 0:02:59.7]} 3. d5 {[%clk 0:02:59.8]} 3... b5 {[%clk 0:02:58.7]}
4. Bg5 {[%clk 0:02:59.4]} 4... g6 {[%clk 0:02:59.2]} 5. Bxf6 {[%clk 0:02:51.8]}
5... exf6 {[%clk 0:03:00.1]} 6. e4 {[%clk 0:02:52.3]} 6... f5 {[%clk 0:02:51.9]}
7. e5 {[%clk 0:02:51.2]} 7... Bg7 {[%clk 0:02:39.1]} 8. Bxb5 {[%clk 0:02:50.6]}
8... O-O {[%clk 0:02:39.4]} 9. O-O {[%clk 0:02:49.4]} 9... d6 {[%clk 0:02:38.3]}
10. Re1 {[%clk 0:02:45.4]} 10... Qb6 {[%clk 0:02:28.3]} 11. Nc3 {[%clk
0:02:38.1]} 11... a6 {[%clk 0:02:26.3]} 12. Bc4 {[%clk 0:02:32.3]} 12... Qxb2
{[%clk 0:02:23.3]} 13. Qd3 {[%clk 0:02:30.3]} 13... dxe5 {[%clk 0:02:16.8]} 14.
Rab1 {[%clk 0:02:28.7]} 14... e4 {[%clk 0:02:09.9]} 15. Rxb2 {[%clk 0:02:17.9]}
15... exd3 {[%clk 0:02:08.8]} 16. Rb3 {[%clk 0:02:18.1]} 16... dxc2 {[%clk
0:02:02.7]} 17. Rc1 {[%clk 0:02:18.1]} 17... a5 {[%clk 0:01:52.1]} 18. Rxc2
{[%clk 0:02:15.4]} 18... Ba6 {[%clk 0:01:49.6]} 19. Na4 {[%clk 0:02:11.2]} 19...
Bxc4 {[%clk 0:01:42.3]} 20. Rxc4 {[%clk 0:02:12.1]} 20... Nd7 {[%clk 0:01:42.6]}
21. Rb7 {[%clk 0:02:11.4]} 21... Rfd8 {[%clk 0:01:34.8]} 22. h4 {[%clk
0:02:10.6]} 22... Nf6 {[%clk 0:01:28.3]} 23. Nb6 {[%clk 0:02:10.3]} 23... Rab8
{[%clk 0:01:25.6]} 24. Rxb8 {[%clk 0:02:03.9]} 24... Rxb8 {[%clk 0:01:26.5]} 25.
Na4 {[%clk 0:02:02.4]} 25... Nxd5 {[%clk 0:01:24.1]} 26. Rxc5 {[%clk 0:02:02.4]}
26... Nf6 {[%clk 0:01:15.3]} 27. Rxa5 {[%clk 0:02:01.3]} 27... Rb1+ {[%clk
0:01:02.9]} 28. Kh2 {[%clk 0:02:01.1]} 28... Ng4+ {[%clk 0:01:02.9]} 29. Kg3
{[%clk 0:02:01.3]} 29... Bf8 {[%clk 0:01:02.3]} 30. Rd5 {[%clk 0:01:56.9]} 30...
Ra1 {[%clk 0:00:53.2]} 31. Rd2 {[%clk 0:01:49.2]} 31... Bb4 {[%clk 0:00:50.9]}
32. Rd4 {[%clk 0:01:46.5]} 32... Ba5 {[%clk 0:00:47.6]} 33. Rd7 {[%clk 0:01:41]}
33... Rxa2 {[%clk 0:00:46.3]} 34. Ng5 {[%clk 0:01:41.2]} 34... Be1 {[%clk
0:00:41.9]} 35. Nxf7 {[%clk 0:01:36.6]} 35... Rxa4 {[%clk 0:00:38.1]} 36. Kf3
{[%clk 0:01:27.1]} 36... Bxf2 {[%clk 0:00:36.5]} 37. Ng5 {[%clk 0:01:24.3]}
37... Bxh4 {[%clk 0:00:36]} 38. Ne6 {[%clk 0:01:23.1]} 38... Bf6 {[%clk
0:00:35.4]} 39. Rb7 {[%clk 0:01:21.1]} 39... h5 {[%clk 0:00:35.3]} 40. Rb8+
{[%clk 0:01:20.1]} 40... Kh7 {[%clk 0:00:34.6]} 41. Rb7+ {[%clk 0:01:21]} 41...
Kh6 {[%clk 0:00:33.9]} 42. Nf8 {[%clk 0:01:19.5]} 42... Ra3+ {[%clk 0:00:31.8]}
43. Ke2 {[%clk 0:01:14.5]} 43... Kg5 {[%clk 0:00:32.2]} 44. Rh7 {[%clk
0:01:03.7]} 44... Ra2+ {[%clk 0:00:31.1]} 45. Kf3 {[%clk 0:01:02.9]} 45... Ne5+
{[%clk 0:00:29.7]} 46. Kg3 {[%clk 0:01:01.6]} 46... h4+ {[%clk 0:00:27.8]} 47.
Kh3 {[%clk 0:01:01.9]} 47... Ra3+ {[%clk 0:00:27.4]} 48. g3 {[%clk 0:00:59.2]}
48... Rxg3+ {[%clk 0:00:26.4]} 49. Kh2 {[%clk 0:00:59.6]} 49... Nf3+ {[%clk
0:00:26.4]} 50. Kh1 {[%clk 0:00:58.9]} 50... Rg1# {[%clk 0:00:26.8]} 0-1

[Event "Early-Titled-Tuesday-Blitz-April-16-2024"]
[Site "Chess.com"]
[Date "2024.04.16"]
[Round "7"]
[White "LileKoridze"]
[Black "PonyQueen07"]
[Result "1/2-1/2"]
[WhiteElo "2378"]
[BlackElo "2215"]
[TimeControl "180+1"]
[EndTime "9:20:33 PDT"]
[Termination "Game drawn by repetition"]

1. d4 {[%clk 0:03:00.9]} 1... Nf6 {[%clk 0:02:59.7]} 2. c4 {[%clk 0:03:01]} 2...
e6 {[%clk 0:02:59.3]} 3. Nf3 {[%clk 0:03:01.1]} 3... Bb4+ {[%clk 0:02:59.5]} 4.
Bd2 {[%clk 0:03:00.7]} 4... a5 {[%clk 0:02:59.4]} 5. a3 {[%clk 0:03:00.7]} 5...
Bxd2+ {[%clk 0:02:59]} 6. Nbxd2 {[%clk 0:03:01.6]} 6... b6 {[%clk 0:02:58.1]} 7.
e4 {[%clk 0:03:01.2]} 7... d6 {[%clk 0:02:57.4]} 8. Bd3 {[%clk 0:03:01.5]} 8...
Bb7 {[%clk 0:02:57.4]} 9. O-O {[%clk 0:03:01.8]} 9... Nbd7 {[%clk 0:02:57.8]}
10. e5 {[%clk 0:03:01.1]} 10... dxe5 {[%clk 0:02:52]} 11. dxe5 {[%clk
0:03:00.8]} 11... Ng4 {[%clk 0:02:48.7]} 12. Be4 {[%clk 0:03:00.3]} 12... Bxe4
{[%clk 0:02:41.6]} 13. Nxe4 {[%clk 0:02:59.9]} 13... Ndxe5 {[%clk 0:02:19]} 14.
Nxe5 {[%clk 0:02:37]} 14... Qxd1 {[%clk 0:02:02.6]} 15. Raxd1 {[%clk 0:02:36.5]}
15... Nxe5 {[%clk 0:02:01.7]} 16. c5 {[%clk 0:02:36.9]} 16... O-O {[%clk
0:01:54.4]} 17. cxb6 {[%clk 0:02:36.6]} 17... cxb6 {[%clk 0:01:54]} 18. Rd6
{[%clk 0:02:36.8]} 18... Nc4 {[%clk 0:01:48.3]} 19. Rc6 {[%clk 0:02:36]} 19...
Rac8 {[%clk 0:01:34.4]} 20. Rxc8 {[%clk 0:02:34.5]} 20... Rxc8 {[%clk
0:01:33.8]} 21. Rc1 {[%clk 0:02:34.8]} 21... Nd6 {[%clk 0:01:22.2]} 22. Nc3
{[%clk 0:02:33.8]} 22... g6 {[%clk 0:01:13.8]} 23. Rd1 {[%clk 0:02:32.4]} 23...
Nc4 {[%clk 0:01:11]} 24. Rb1 {[%clk 0:02:30.1]} 24... Nxa3 {[%clk 0:00:57.9]}
25. bxa3 {[%clk 0:02:30.2]} 25... Rxc3 {[%clk 0:00:57]} 26. g3 {[%clk
0:02:30.8]} 26... Rxa3 {[%clk 0:00:55.6]} 27. Rxb6 {[%clk 0:02:31.1]} 27... Ra1+
{[%clk 0:00:50]} 28. Kg2 {[%clk 0:02:31.3]} 28... a4 {[%clk 0:00:49.7]} 29. Ra6
{[%clk 0:02:31.8]} 29... a3 {[%clk 0:00:49.3]} 30. Ra7 {[%clk 0:02:32.4]} 30...
Kg7 {[%clk 0:00:48.2]} 31. Ra5 {[%clk 0:02:32.1]} 31... Kf6 {[%clk 0:00:47.6]}
32. h4 {[%clk 0:02:31.9]} 32... h5 {[%clk 0:00:45.9]} 33. Ra7 {[%clk 0:02:30.4]}
33... a2 {[%clk 0:00:44.4]} 34. Ra5 {[%clk 0:02:30.1]} 34... e5 {[%clk
0:00:43.1]} 35. Ra7 {[%clk 0:02:29]} 35... Ke6 {[%clk 0:00:40.9]} 36. Ra6+
{[%clk 0:02:29.3]} 36... Kf5 {[%clk 0:00:39.7]} 37. Ra5 {[%clk 0:02:28.8]} 37...
f6 {[%clk 0:00:36]} 38. Ra6 {[%clk 0:02:28.6]} 38... Ke4 {[%clk 0:00:19.4]} 39.
Ra3 {[%clk 0:02:24.8]} 39... f5 {[%clk 0:00:18.6]} 40. Ra6 {[%clk 0:02:24.2]}
40... Kd3 {[%clk 0:00:17.6]} 41. Ra8 {[%clk 0:02:24.4]} 41... e4 {[%clk
0:00:15.8]} 42. Ra6 {[%clk 0:02:23.9]} 42... e3 {[%clk 0:00:08.6]} 43. Ra3+
{[%clk 0:02:23.9]} 43... Kd2 {[%clk 0:00:03.5]} 44. fxe3 {[%clk 0:02:21.9]}
44... Kc2 {[%clk 0:00:03.3]} 45. Ra8 {[%clk 0:02:21.8]} 45... Kd2 {[%clk
0:00:03.1]} 46. Ra3 {[%clk 0:02:20.4]} 46... Ke2 {[%clk 0:00:03.3]} 47. Ra8
{[%clk 0:02:16.2]} 47... Kxe3 {[%clk 0:00:03.6]} 48. Re8+ {[%clk 0:02:16.2]}
48... Kd4 {[%clk 0:00:03.7]} 49. Rd8+ {[%clk 0:02:16.6]} 49... Ke5 {[%clk
0:00:04.2]} 50. Ra8 {[%clk 0:02:16.6]} 50... Kd5 {[%clk 0:00:03.1]} 51. Rd8+
{[%clk 0:02:15.7]} 51... Ke6 {[%clk 0:00:03.1]} 52. Ra8 {[%clk 0:02:15.8]} 52...
f4 {[%clk 0:00:02.4]} 53. gxf4 {[%clk 0:02:11.8]} 53... Kf5 {[%clk 0:00:03]} 54.
Ra5+ {[%clk 0:02:11.2]} 54... Kxf4 {[%clk 0:00:02.8]} 55. Ra4+ {[%clk
0:02:11.3]} 55... Kf5 {[%clk 0:00:02.9]} 56. Ra5+ {[%clk 0:02:11.9]} 56... Kg4
{[%clk 0:00:02.3]} 57. Ra4+ {[%clk 0:02:12.1]} 57... Kf5 {[%clk 0:00:02.9]} 58.
Ra5+ {[%clk 0:02:12.7]} 58... Ke4 {[%clk 0:00:03]} 59. Ra4+ {[%clk 0:02:13.2]}
59... Kd3 {[%clk 0:00:03.5]} 60. Ra3+ {[%clk 0:02:12.5]} 60... Kc2 {[%clk
0:00:02.3]} 61. Ra8 {[%clk 0:02:12.5]} 61... Kb3 {[%clk 0:00:02.1]} 62. Rb8+
{[%clk 0:02:12.8]} 62... Kc4 {[%clk 0:00:02]} 63. Rc8+ {[%clk 0:02:13]} 63...
Kb5 {[%clk 0:00:02.5]} 64. Rb8+ {[%clk 0:02:13.5]} 64... Kc6 {[%clk 0:00:03.1]}
65. Ra8 {[%clk 0:02:14]} 65... Kb7 {[%clk 0:00:03.5]} 66. Ra3 {[%clk 0:02:14.2]}
66... Kc7 {[%clk 0:00:03.1]} 67. Ra7+ {[%clk 0:02:14.3]} 67... Kd6 {[%clk
0:00:03.2]} 68. Ra6+ {[%clk 0:02:14.5]} 68... Ke5 {[%clk 0:00:03.4]} 69. Ra5+
{[%clk 0:02:15]} 69... Kf6 {[%clk 0:00:03.6]} 70. Ra6+ {[%clk 0:02:15.5]} 70...
Kg7 {[%clk 0:00:04.2]} 71. Ra7+ {[%clk 0:02:16]} 71... Kh6 {[%clk 0:00:04.6]}
72. Ra8 {[%clk 0:02:16.6]} 72... Kg7 {[%clk 0:00:01.5]} 73. Ra7+ {[%clk
0:02:16.8]} 73... Kf8 {[%clk 0:00:01.1]} 74. Ra8+ {[%clk 0:02:17.3]} 74... Kf7
{[%clk 0:00:02]} 75. Ra7+ {[%clk 0:02:17.7]} 75... Kf6 {[%clk 0:00:02.6]} 76.
Ra6+ {[%clk 0:02:18.1]} 76... Kf5 {[%clk 0:00:03.3]} 77. Ra5+ {[%clk 0:02:18.7]}
1/2-1/2